[Event "360 One Wealth GP-4 2024"]
[Site "Mumbai"]
[Date "2024.03.17"]
[Round "7.9"]
[White "Butala Krish"]
[Black "Vihaan Ravi Rao"]
[Result "1-0"]
[ECO "B84"]
[WhiteElo "1659"]
[BlackElo "1532"]
[Annotator "NA RC"]
[PlyCount "119"]
[EventDate "2024.03.10"]
[EventCountry "IND"]
[SourceTitle "playchess.com"]
[Source "ChessBase"]
[SourceQuality "1"]
[TimeControl "5400+30"]

1. e4 {[%emt 0:00:08]} c5 {[%emt 0:00:27]} 2. Nf3 {[%emt 0:00:31]} d6 {[%emt 0:00:11]} 3. d4 {[%emt 0:00:24]} cxd4 {[%emt 0:00:11]} 4. Nxd4 {[%emt 0:00:16]} Nf6 {[%emt 0:00:15]} 5. Nc3 {[%emt 0:00:35]} a6 {[%emt 0:00:08]} 6. Be3 {[%emt 0:00:23]} e6 {[%emt 0:00:53]} 7. Qd2 {[%emt 0:01:26]} Be7 {[%emt 0:05:20]} 8. Be2 {[%emt 0:04:35]} Qc7 {[%emt 0:03:54]} 9. f4 {[%emt 0:09:04]} O-O {[%emt 0:12:45]} 10. g4 {[%emt 0:06:14]} b5 {[%emt 0:03:36]} 11. a3 {[%emt 0:04:10]} Bb7 {[%emt 0:03:06]} 12. Bf3 {[%emt 0:00:31]} Nc6 {[%emt 0:08:41]} 13. g5 {[%emt 0:05:00]} Nd7 {[%emt 0:02:37]} 14. Nce2 {[%emt 0:01:22]} Nb6 {[%emt 0:02:49]} 15. b3 {[%emt 0:05:28]} Nxd4 {[%emt 0:05:14]} 16. Nxd4 {[%emt 0:04:04]} d5 {[%emt 0:01:21]} 17. e5 {[%emt 0:02:15]} Rac8 {[%emt 0:04:28]} 18. h4 {[%emt 0:10:05]} Qc3 {[%emt 0:06:55]} 19. Qxc3 {[%emt 0:01:06]} Rxc3 {[%emt 0:00:36]} 20. Bd2 {[%emt 0:00:02]} Rc7 {[%emt 0:02:08]} 21. Ba5 {[%emt 0:00:37]} Bc5 {[%emt 0:01:40]} 22. c3 {[%emt 0:00:08]} Bxd4 {[%emt 0:03:14]} 23. cxd4 {[%emt 0:00:06]} Rc6 {[%emt 0:00:21]} 24. Rh3 {[%emt 0:09:15]} Rfc8 {[%emt 0:01:58]} 25. Bd1 {[%emt 0:00:04]} Nd7 {[%emt 0:02:11]} 26. h5 {[%emt 0:00:08]} Rc1 {[%emt 0:11:03]} 27. Rxc1 {[%emt 0:00:09]} Rxc1 {[%emt 0:00:05]} 28. Bc3 {[%emt 0:00:02]} Nb8 {[%emt 0:03:27]} 29. Kd2 {[%emt 0:00:16]} Rb1 {[%emt 0:00:41]} 30. Kc2 {[%emt 0:00:49]} Rxd1 {[%emt 0:00:16]} 31. Kxd1 {[%emt 0:00:04]} Nc6 {[%emt 0:01:23]} 32. Ke2 {[%emt 0:00:39]} g6 {[%emt 0:03:45]} 33. h6 {[%emt 0:02:17]} Kf8 {[%emt 0:00:36]} 34. Ke3 {[%emt 0:00:14]} Ke8 {[%emt 0:01:58]} 35. Rh2 {[%emt 0:00:25]} Kd7 {[%emt 0:00:34]} 36. Rc2 {[%emt 0:00:20]} a5 {[%emt 0:01:40]} 37. Be1 {[%emt 0:01:01]} Bc8 {[%emt 0:01:10]} 38. Rc5 {[%emt 0:00:50]} Ba6 {[%emt 0:00:06]} 39. Bc3 {[%emt 0:00:54]} a4 {[%emt 0:01:03]} 40. bxa4 {[%emt 0:00:05]} bxa4 {[%emt 0:00:04]} 41. f5 {[%emt 0:02:05]} Bc4 {[%emt 0:02:43]} 42. f6 {[%emt 0:02:15]} Kc7 {[%emt 0:02:11]} 43. Rxc4 {[%emt 0:02:18]} dxc4 {[%emt 0:00:08]} 44. d5 {[%emt 0:00:49]} exd5 {[%emt 0:01:58]} 45. e6 {[%emt 0:00:14]} Nb8 {[%emt 0:01:33]} 46. Be5+ {[%emt 0:00:48]} Kd8 {[%emt 0:00:23]} 47. e7+ {[%emt 0:00:14]} Ke8 {[%emt 0:00:04]} 48. Bxb8 {[%emt 0:00:04]} c3 {[%emt 0:00:14]} 49. Kd3 {[%emt 0:00:04]} d4 {[%emt 0:00:03]} 50. Be5 {[%emt 0:00:06]} c2 {[%emt 0:00:08]} 51. Kxc2 {[%emt 0:00:03]} d3+ {[%emt 0:00:03]} 52. Kxd3 {[%emt 0:00:05]} Kd7 {[%emt 0:00:03]} 53. Kc4 {[%emt 0:00:09]} Ke8 {[%emt 0:00:06]} 54. Kb5 {[%emt 0:00:04]} Kd7 {[%emt 0:00:07]} 55. Kxa4 {[%emt 0:00:04]} Ke8 {[%emt 0:00:08]} 56. Kb4 {[%emt 0:00:05]} Kd7 {[%emt 0:00:06]} 57. a4 {[%emt 0:00:02]} Ke8 {[%emt 0:00:05]} 58. a5 {[%emt 0:00:02]} Kd7 {[%emt 0:00:21]} 59. a6 {[%emt 0:00:04]} Kc8 {[%emt 0:00:07]} 60. e8=Q# {[%emt 0:00:08]} 1-0

[Event "360 One Wealth GP-4 2024"]
[Site "Mumbai"]
[Date "2024.03.17"]
[Round "7.10"]
[White "Muthe Dhruv"]
[Black "Pawar Sohum"]
[Result "1-0"]
[ECO "C65"]
[WhiteElo "1539"]
[BlackElo "1657"]
[Annotator "NA RC"]
[PlyCount "109"]
[EventDate "2024.03.10"]
[EventCountry "IND"]
[SourceTitle "playchess.com"]
[Source "ChessBase"]
[SourceQuality "1"]
[TimeControl "5400+30"]

1. e4 {[%emt 0:00:02]} e5 {[%emt 0:00:55]} 2. Nf3 {[%emt 0:00:07]} Nc6 {[%emt 0:00:03]} 3. Bb5 {[%emt 0:00:03]} Nf6 {[%emt 0:00:19]} 4. O-O {[%emt 0:00:38]} Bc5 {[%emt 0:00:02]} 5. c3 {[%emt 0:00:33]} O-O {[%emt 0:01:00]} 6. d4 {[%emt 0:01:06]} Bb6 {[%emt 0:00:40]} 7. Bg5 {[%emt 0:05:38]} h6 {[%emt 0:02:51]} 8. Bh4 {[%emt 0:01:54]} g5 {[%emt 0:01:02]} 9. Nxg5 {[%emt 0:01:21]} hxg5 {[%emt 0:01:30]} 10. Bxg5 {[%emt 0:00:01]} Kg7 {[%emt 0:01:40]} 11. f4 {[%emt 0:00:17]} Nxd4 {[%emt 0:06:00]} 12. cxd4 {[%emt 0:14:40]} Bxd4+ {[%emt 0:00:10]} 13. Qxd4 {[%emt 0:00:16]} exd4 {[%emt 0:00:19]} 14. e5 {[%emt 0:00:06]} Nd5 {[%emt 0:09:06]} 15. Bxd8 {[%emt 0:00:16]} Rxd8 {[%emt 0:00:01]} 16. Nd2 {[%emt 0:02:57]} Ne3 {[%emt 0:04:05]} 17. Rf3 {[%emt 0:00:28]} d6 {[%emt 0:06:35]} 18. Rg3+ {[%emt 0:01:14]} Kf8 {[%emt 0:00:30]} 19. Bd3 {[%emt 0:03:59]} c5 {[%emt 0:07:02]} 20. exd6 {[%emt 0:00:26]} Bf5 {[%emt 0:01:44]} 21. Bxf5 {[%emt 0:03:36]} Nxf5 {[%emt 0:00:02]} 22. Rg5 {[%emt 0:00:18]} Nxd6 {[%emt 0:00:29]} 23. Rxc5 {[%emt 0:00:14]} b6 {[%emt 0:02:31]} 24. Rd5 {[%emt 0:03:50]} Nb7 {[%emt 0:00:23]} 25. Rxd8+ {[%emt 0:00:08]} Rxd8 {[%emt 0:00:02]} 26. Rd1 {[%emt 0:03:32]} Nc5 {[%emt 0:01:22]} 27. Nf3 {[%emt 0:00:16]} d3 {[%emt 0:01:40]} 28. Kf2 {[%emt 0:01:01]} Na4 {[%emt 0:05:08]} 29. Rd2 {[%emt 0:01:07]} Rc8 {[%emt 0:00:24]} 30. Ke3 {[%emt 0:06:25]} Rc2 {[%emt 0:01:06]} 31. b3 {[%emt 0:01:39]} Nc3 {[%emt 0:00:56]} 32. Kxd3 {[%emt 0:03:29]} Rxd2+ {[%emt 0:00:41]} 33. Nxd2 {[%emt 0:01:03]} Nxa2 {[%emt 0:00:04]} 34. Kc4 {[%emt 0:01:52]} a6 {[%emt 0:01:37]} 35. Kd5 {[%emt 0:05:27]} Nb4+ {[%emt 0:00:19]} 36. Kd6 {[%emt 0:00:34]} Kg7 {[%emt 0:05:36]} 37. g3 {[%emt 0:00:56]} Kf6 {[%emt 0:01:43]} 38. g4 {[%emt 0:03:01]} b5 {[%emt 0:02:11]} 39. Ne4+ {[%emt 0:03:24]} Kg7 {[%emt 0:00:22]} 40. f5 {[%emt 0:01:49]} Nd3 {[%emt 0:01:20]} 41. h4 {[%emt 0:01:30]} a5 {[%emt 0:01:11]} 42. Nc5 {[%emt 0:03:31]} Nc1 {[%emt 0:01:56]} 43. g5 {[%emt 0:08:48]} b4 {[%emt 0:01:42]} 44. h5 {[%emt 0:01:39]} Ne2 {[%emt 0:03:32]} 45. Ke7 {[%emt 0:01:58]} Nf4 {[%emt 0:03:02]} 46. h6+ {[%emt 0:00:49]} Kg8 {[%emt 0:00:30]} 47. Ne4 {[%emt 0:04:11]} Nd5+ {[%emt 0:01:22]} 48. Kd6 {[%emt 0:01:19]} Ne3 {[%emt 0:03:19]} 49. Ke5 {[%emt 0:00:31]} Kh8 {[%emt 0:02:24]} 50. Nf6 {[%emt 0:02:26]} a4 {[%emt 0:00:33]} 51. g6 {[%emt 0:00:33]} fxg6 {[%emt 0:00:21]} 52. fxg6 {[%emt 0:00:00]} Ng4+ {[%emt 0:00:43]} 53. Nxg4 {[%emt 0:00:00]} axb3 {[%emt 0:00:16]} 54. Nf6 {[%emt 0:00:42]} b2 {[%emt 0:00:21]} 55. g7# {[%emt 0:00:05]} 1-0

[Event "360 One Wealth GP-4 2024"]
[Site "Mumbai"]
[Date "2024.03.17"]
[Round "7.11"]
[White "Nirvaan Nirav Shah"]
[Black "Palaash Suyog Mapara"]
[Result "1-0"]
[ECO "B13"]
[WhiteElo "1625"]
[BlackElo "1521"]
[Annotator "NA RC"]
[PlyCount "121"]
[EventDate "2024.03.10"]
[EventCountry "IND"]
[SourceTitle "playchess.com"]
[Source "ChessBase"]
[SourceQuality "1"]
[TimeControl "5400+30"]

1. e4 {[%emt 0:00:13]} c6 {[%emt 0:00:15]} 2. d4 {[%emt 0:00:07]} d5 {[%emt 0:00:20]} 3. exd5 {[%emt 0:00:05]} cxd5 {[%emt 0:00:09]} 4. Bd3 {[%emt 0:00:06]} Nf6 {[%emt 0:00:13]} 5. h3 {[%emt 0:00:52]} e6 {[%emt 0:01:08]} 6. c3 {[%emt 0:00:20]} Bd6 {[%emt 0:00:21]} 7. Nf3 {[%emt 0:00:23]} h6 {[%emt 0:00:31]} 8. O-O {[%emt 0:00:32]} Nc6 {[%emt 0:00:55]} 9. Re1 {[%emt 0:02:29]} Qc7 {[%emt 0:02:32]} 10. Qe2 {[%emt 0:02:20]} O-O {[%emt 0:03:24]} 11. Nbd2 {[%emt 0:03:48]} Re8 {[%emt 0:00:55]} 12. Ne5 {[%emt 0:15:31]} Bxe5 {[%emt 0:09:59]} 13. dxe5 {[%emt 0:00:11]} Nd7 {[%emt 0:00:46]} 14. Nf3 {[%emt 0:01:58]} f5 {[%emt 0:16:15]} 15. g4 {[%emt 0:06:01]} Nf8 {[%emt 0:05:22]} 16. Qc2 {[%emt 0:02:55]} Qf7 {[%emt 0:02:38]} 17. Kg2 {[%emt 0:01:18]} Ne7 {[%emt 0:08:40]} 18. g5 {[%emt 0:10:50]} h5 {[%emt 0:01:48]} 19. Nd4 {[%emt 0:04:47]} a6 {[%emt 0:03:57]} 20. Qb3 {[%emt 0:06:18]} Nc6 {[%emt 0:01:13]} 21. Nxc6 {[%emt 0:00:21]} bxc6 {[%emt 0:00:09]} 22. f4 {[%emt 0:02:45]} g6 {[%emt 0:00:43]} 23. Be3 {[%emt 0:00:17]} Qb7 {[%emt 0:05:46]} 24. Qxb7 {[%emt 0:01:57]} Bxb7 {[%emt 0:00:01]} 25. a4 {[%emt 0:01:10]} Nd7 {[%emt 0:00:42]} 26. b4 {[%emt 0:00:11]} Rec8 {[%emt 0:01:35]} 27. Bc5 {[%emt 0:00:14]} Kf7 {[%emt 0:05:17]} 28. Kf2 {[%emt 0:11:09]} Kg7 {[%emt 0:06:41]} 29. Ke3 {[%emt 0:00:27]} Kf7 {[%emt 0:00:42]} 30. Kd4 {[%emt 0:00:09]} Kg7 {[%emt 0:00:43]} 31. Rab1 {[%emt 0:02:35]} Kf7 {[%emt 0:01:39]} 32. Rb2 {[%emt 0:00:35]} Kg7 {[%emt 0:00:37]} 33. Rc1 {[%emt 0:01:23]} Kf7 {[%emt 0:02:23]} 34. c4 {[%emt 0:01:33]} dxc4 {[%emt 0:07:32]} 35. Bxc4 {[%emt 0:02:07]} Rd8 {[%emt 0:01:10]} 36. Bd6 {[%emt 0:02:21]} Nb6 {[%emt 0:02:48]} 37. Bb3 {[%emt 0:01:04]} Rd7 {[%emt 0:01:34]} 38. Re2 {[%emt 0:02:55]} Re8 {[%emt 0:04:36]} 39. h4 {[%emt 0:03:18]} Rg8 {[%emt 0:00:59]} 40. a5 {[%emt 0:00:37]} Nc8 {[%emt 0:00:36]} 41. Kc5 {[%emt 0:00:04]} Na7 {[%emt 0:01:14]} 42. Ba4 {[%emt 0:01:26]} Rh8 {[%emt 0:01:13]} 43. Rd2 {[%emt 0:00:57]} Re8 {[%emt 0:01:11]} 44. Rcd1 {[%emt 0:00:40]} Red8 {[%emt 0:00:24]} 45. Bc7 {[%emt 0:01:41]} Rxd2 {[%emt 0:00:12]} 46. Bxd8 {[%emt 0:00:52]} Rxd1 {[%emt 0:00:47]} 47. Bxd1 {[%emt 0:00:55]} Ke8 {[%emt 0:00:51]} 48. Kb6 {[%emt 0:00:00]} Kxd8 {[%emt 0:00:08]} 49. Kxa7 {[%emt 0:00:00]} Kc7 {[%emt 0:00:18]} 50. Be2 {[%emt 0:00:00]} c5 {[%emt 0:01:01]} 51. bxc5 {[%emt 0:00:00]} Bc6 {[%emt 0:00:30]} 52. Bxa6 {[%emt 0:03:14]} Bd7 {[%emt 0:00:34]} 53. Bc4 {[%emt 0:01:43]} Bc8 {[%emt 0:00:32]} 54. c6 {[%emt 0:00:19]} Kxc6 {[%emt 0:00:34]} 55. Kb8 {[%emt 0:00:29]} Bd7 {[%emt 0:00:21]} 56. a6 {[%emt 0:00:00]} Kc5 {[%emt 0:00:17]} 57. a7 {[%emt 0:00:10]} Bc6 {[%emt 0:00:03]} 58. Bxe6 {[%emt 0:00:13]} Kd4 {[%emt 0:00:11]} 59. a8=Q {[%emt 0:00:15]} Bxa8 {[%emt 0:00:03]} 60. Kxa8 {[%emt 0:00:10]} Ke4 {[%emt 0:00:18]} 61. Bc4 {[%emt 0:00:16]} 1-0

[Event "360 One Wealth GP-4 2024"]
[Site "Mumbai"]
[Date "2024.03.17"]
[Round "7.12"]
[White "Prranamya S Panagaonkar"]
[Black "Dodhiya Punit"]
[Result "0-1"]
[ECO "A85"]
[WhiteElo "1471"]
[BlackElo "1624"]
[Annotator "NA RC"]
[PlyCount "82"]
[EventDate "2024.03.10"]
[EventCountry "IND"]
[SourceTitle "playchess.com"]
[Source "ChessBase"]
[SourceQuality "1"]
[TimeControl "5400+30"]

1. c4 {[%emt 0:10:11]} e6 {[%emt 0:01:03]} 2. d4 {[%emt 0:00:58]} f5 {[%emt 0:00:33]} 3. Nf3 {[%emt 0:01:42]} Nf6 {[%emt 0:03:25]} 4. Nc3 {[%emt 0:02:28]} Bb4 {[%emt 0:00:02]} 5. Bd2 {[%emt 0:08:51]} b6 {[%emt 0:01:28]} 6. e3 {[%emt 0:07:00]} Bb7 {[%emt 0:00:25]} 7. Bd3 {[%emt 0:04:54]} O-O {[%emt 0:04:59]} 8. O-O {[%emt 0:02:46]} d6 {[%emt 0:02:09]} 9. a3 {[%emt 0:06:17]} Bxc3 {[%emt 0:00:44]} 10. Bxc3 {[%emt 0:04:54]} Ne4 {[%emt 0:01:57]} 11. Rc1 {[%emt 0:01:09]} Rf6 {[%emt 0:04:32]} 12. Nd2 {[%emt 0:07:58]} Rh6 {[%emt 0:30:47]} 13. Bxe4 {[%emt 0:11:57]} fxe4 {[%emt 0:05:35]} 14. Qg4 {[%emt 0:09:18]} Qe7 {[%emt 0:03:08]} 15. f4 {[%emt 0:05:45]} exf3 {[%emt 0:02:59]} 16. Nxf3 {[%emt 0:00:48]} Nd7 {[%emt 0:00:53]} 17. Qg5 {[%emt 0:10:48]} Nf6 {[%emt 0:02:47]} 18. Rf2 {[%emt 0:00:59]} Qd7 {[%emt 0:11:39]} 19. Nd2 {[%emt 0:01:48]} Rg6 {[%emt 0:06:31]} 20. Qh4 {[%emt 0:00:18]} Qe8 {[%emt 0:02:18]} 21. Rcf1 {[%emt 0:04:30]} Rg4 {[%emt 0:01:58]} 22. Qh3 {[%emt 0:00:24]} Qg6 {[%emt 0:00:10]} 23. d5 {[%emt 0:03:49]} e5 {[%emt 0:00:48]} 24. Qf3 {[%emt 0:00:50]} Bc8 {[%emt 0:04:53]} 25. b4 {[%emt 0:01:51]} Bd7 {[%emt 0:01:15]} 26. Kh1 {[%emt 0:00:42]} Rg5 {[%emt 0:00:18]} 27. Qe2 {[%emt 0:00:36]} Bg4 {[%emt 0:03:46]} 28. Qe1 {[%emt 0:00:12]} Rh5 {[%emt 0:00:32]} 29. h3 {[%emt 0:00:48]} Qh6 {[%emt 0:01:10]} 30. Kg1 {[%emt 0:00:30]} Bd7 {[%emt 0:01:05]} 31. Rf3 {[%emt 0:00:31]} Re8 {[%emt 0:00:36]} 32. Qg3 {[%emt 0:00:29]} Rg5 {[%emt 0:00:35]} 33. Qh2 {[%emt 0:00:21]} Qg6 {[%emt 0:00:25]} 34. R1f2 {[%emt 0:00:41]} Rh5 {[%emt 0:00:47]} 35. Rg3 {[%emt 0:00:24]} Qh6 {[%emt 0:00:36]} 36. Nf1 {[%emt 0:00:37]} Ne4 {[%emt 0:00:30]} 37. Be1 {[%emt 0:00:28]} Nxf2 {[%emt 0:00:14]} 38. Bxf2 {[%emt 0:00:16]} Rf8 {[%emt 0:00:26]} 39. e4 {[%emt 0:00:39]} Qc1 {[%emt 0:00:34]} 40. Rf3 {[%emt 0:00:36]} Rxf3 {[%emt 0:00:43]} 41. gxf3 {[%emt 0:00:01]} Bxh3 {[%emt 0:00:21]} 0-1

[Event "360 One Wealth GP-4 2024"]
[Site "Mumbai"]
[Date "2024.03.17"]
[Round "7.14"]
[White "Milind Parle"]
[Black "Mukul Samir Rane"]
[Result "1-0"]
[ECO "C65"]
[WhiteElo "1642"]
[BlackElo "1506"]
[Annotator "NA RC"]
[PlyCount "41"]
[EventDate "2024.03.10"]
[EventCountry "IND"]
[SourceTitle "playchess.com"]
[Source "ChessBase"]
[SourceQuality "1"]
[TimeControl "5400+30"]

1. e4 e5 2. Nf3 Nc6 {[%emt 0:45:11]} 3. Bb5 Bc5 {[%emt 0:01:29]} 4. O-O Nf6 {[%emt 0:00:27]} 5. c3 d5 {[%emt 0:09:16]} 6. Nxe5 Qd6 {[%emt 0:07:52]} 7. d4 {[%emt 0:00:40]} dxe4 {[%emt 0:31:48]} 8. Nxc6 {[%emt 0:04:45]} bxc6 {[%emt 0:02:29]} 9. dxc5 {[%emt 0:00:46]} Qxc5 {[%emt 0:00:36]} 10. Be2 {[%emt 0:00:46]} h5 {[%emt 0:04:35]} 11. Be3 {[%emt 0:00:33]} Qe5 {[%emt 0:00:22]} 12. Qd4 {[%emt 0:01:00]} Qf5 {[%emt 0:00:59]} 13. Qc5 {[%emt 0:00:39]} Qg6 {[%emt 0:04:43]} 14. Qxc6+ {[%emt 0:01:18]} Ke7 {[%emt 0:00:08]} 15. Bc5+ {[%emt 0:00:28]} Kd8 {[%emt 0:00:26]} 16. Rd1+ {[%emt 0:00:25]} Nd7 {[%emt 0:00:15]} 17. Qxa8 {[%emt 0:01:38]} h4 18. h3 {[%emt 0:00:51]} Qg5 {[%emt 0:02:22]} 19. Be3 Qg6 {[%emt 0:02:09]} 20. Qd5 {[%emt 0:02:22]} f5 {[%emt 0:00:44]} 21. Bb5 {[%emt 0:02:15]} 1-0

[Event "360 One Wealth GP-4 2024"]
[Site "Mumbai"]
[Date "2024.03.17"]
[Round "7.15"]
[White "Sunil, Vaidya"]
[Black "Nova Ayer Juyal"]
[Result "1-0"]
[ECO "D45"]
[WhiteElo "1640"]
[BlackElo "1486"]
[Annotator "NA RC"]
[PlyCount "70"]
[EventDate "2024.03.10"]
[EventCountry "IND"]
[SourceTitle "playchess.com"]
[Source "ChessBase"]
[SourceQuality "1"]
[TimeControl "5400+30"]

1. d4 {[%emt 0:07:37]} d5 {[%emt 0:00:08]} 2. c4 {[%emt 0:00:46]} c6 {[%emt 0:00:07]} 3. Nf3 {[%emt 0:00:33]} Nf6 {[%emt 0:00:06]} 4. e3 {[%emt 0:00:21]} e6 {[%emt 0:01:15]} 5. a3 {[%emt 0:00:24]} Bd6 {[%emt 0:00:49]} 6. Nc3 {[%emt 0:00:13]} Nbd7 {[%emt 0:00:13]} 7. cxd5 {[%emt 0:01:47]} cxd5 {[%emt 0:01:02]} 8. Bd3 {[%emt 0:00:25]} O-O {[%emt 0:02:01]} 9. O-O {[%emt 0:00:15]} a6 {[%emt 0:00:51]} 10. b4 {[%emt 0:02:12]} Re8 {[%emt 0:09:13]} 11. Bb2 {[%emt 0:00:39]} b6 {[%emt 0:04:08]} 12. Qc2 {[%emt 0:01:00]} Bb7 {[%emt 0:04:43]} 13. Rac1 {[%emt 0:00:29]} Rc8 {[%emt 0:02:18]} 14. Qe2 {[%emt 0:00:26]} a5 {[%emt 0:04:21]} 15. Nb5 {[%emt 0:01:19]} Qe7 {[%emt 0:04:00]} 16. Nxd6 {[%emt 0:00:36]} Qxd6 {[%emt 0:00:15]} 17. Ne5 {[%emt 0:00:33]} axb4 {[%emt 0:04:15]} 18. axb4 {[%emt 0:06:35]} Qxb4 {[%emt 0:02:14]} 19. Rb1 {[%emt 0:06:21]} Qe7 {[%emt 0:02:04]} 20. Bb5 {[%emt 0:02:39]} Red8 {[%emt 0:06:06]} 21. Qd3 {[%emt 0:04:48]} Nxe5 {[%emt 0:01:36]} 22. dxe5 {[%emt 0:00:17]} Ne4 {[%emt 0:00:14]} 23. f3 {[%emt 0:02:27]} Nc5 {[%emt 0:01:00]} 24. Qd1 {[%emt 0:02:10]} Bc6 {[%emt 0:02:59]} 25. Be2 {[%emt 0:03:24]} Rc7 {[%emt 0:04:31]} 26. Bd4 {[%emt 0:01:19]} Rdc8 {[%emt 0:01:54]} 27. Rxb6 {[%emt 0:02:41]} Rb7 {[%emt 0:03:33]} 28. Rxb7 {[%emt 0:00:58]} Bxb7 {[%emt 0:01:03]} 29. Qb1 {[%emt 0:00:40]} h6 {[%emt 0:04:33]} 30. Rc1 {[%emt 0:03:25]} Na6 {[%emt 0:06:28]} 31. Rf1 {[%emt 0:08:01]} Nc5 {[%emt 0:00:16]} 32. Qb6 {[%emt 0:01:42]} Qc7 {[%emt 0:05:32]} 33. Bxc5 Qxc5 34. Qxb7 {[%emt 0:00:02]} Qxe3+ {[%emt 0:00:03]} 35. Kh1 {[%emt 0:00:14]} Ra8 {[%emt 0:00:27]} 1-0